[Event "10th Iberoamericano-ch 2024"]
[Site "Linares"]
[Date "2024.09.25"]
[Round "2.21"]
[White "Perea Fruet, Lorenzo"]
[Black "Cabezas Solano, David Alejandro"]
[Result "1-0"]
[ECO "B50"]
[WhiteElo "2389"]
[BlackElo "2248"]
[Annotator "TA"]
[PlyCount "63"]
[EventDate "2024.09.25"]
[EventType "swiss"]
[EventCountry "ESP"]
[SourceTitle "playchess.com"]
[Source "ChessBase"]
[SourceQuality "1"]
[TimeControl "5400+30"]

{[%evp 9,63,0,27,14,244,243,265,258,262,264,283,253,322,321,415,402,395,363,437,395,396,389,392,386,396,393,464,450,503,495,492,481,523,530,528,528,583,584,636,639,656,649,657,649,680,660,797,790,831,815,845,831,894,894,885,871]} 1. e4 {[%emt 0:00:02][%cal Be2e4,Be4e5][%mdl 32]} c5 {[%emt 0:01:52]} 2. Nf3 {[%emt 0:00:11]} d6 {[%emt 0:00:04]} 3. c3 {[%emt 0:00:04]} Nf6 {[%emt 0:00:17]} 4. h3 {[%emt 0:00:04]} g6 {[%emt 0:02:01]} 5. Bd3 {[%emt 0:00:17]} d5 {[%emt 0:10:30]} 6. e5 {[%emt 0:05:51]} Ne4 {[%emt 0:04:13] [#]} (6... Nfd7 $11) 7. Bb5+ $1 $18 {[%emt 0:01:26]} Bd7 {[%emt 0:19:36]} 8. Bxd7+ {[%emt 0:00:29] White has a decisive advantage.} Nxd7 {[%emt 0:00:01][%cal Bb8d7,Bd7e5,Be5d3][%mdl 32]} 9. d3 {[%emt 0:00:19]} Bg7 {[%emt 0:05:45]} 10. e6 {[%emt 0:01:23]} fxe6 {[%emt 0:06:01]} 11. dxe4 {[%emt 0:00:05]} dxe4 {[%emt 0:01:10]} 12. Ng5 {[%emt 0:00:06][%csl LRe4,LRe6]} Qb6 {[%emt 0:00:05]} 13. Qb3 {[%emt 0:04:32]} Ne5 {[%emt 0:06:24]} 14. Qxb6 {[%emt 0:01:27]} ({Resist} 14. Nxe6 Nd3+ 15. Ke2 Be5 $18) 14... Nd3+ {[%emt 0:00:11]} 15. Ke2 {[%emt 0:00:26]} axb6 {[%emt 0:00:04]} 16. Nxe4 {[%emt 0:01:37]} c4 {[%emt 0:01:56]} 17. Na3 {[%emt 0:03:34]} Rc8 {[%emt 0:01:28]} 18. Rb1 {[%emt 0:01:51] White is clearly winning.} O-O {[%emt 0:13:55]} 19. Be3 {[%emt 0:01:49]} b5 {[%emt 0:06:39]} 20. Nxb5 {[%emt 0:04:32]} Rf5 {[%emt 0:00:57]} 21. Na3 {[%emt 0:01:13][%cal Bb5a3,Ba3c2,Bc2b4][%mdl 32]} b5 {[%emt 0:00:45]} 22. Nc2 {[%emt 0:00:54]} Rb8 {[%emt 0:03:39]} 23. a3 {[%emt 0:00:08]} e5 {[%emt 0:00:30][%cal Be6e5,Be5f4][%mdl 32]} 24. Nb4 {[%emt 0:00:46]} Nf4+ {[%emt 0:00:41]} 25. Bxf4 {[%emt 0:00:05]} exf4 {[%emt 0:00:34]} 26. f3 {[%emt 0:00:01]} Rc8 {[%emt 0:01:15]} 27. Rhd1 {[%emt 0:00:06][%cal Bh1d1,Bd1d7,Bd7d5][%mdl 32]} g5 {[%emt 0:00:15]} 28. Rd7 {[%emt 0:00:12]} Re5 {[%emt 0:00:13]} 29. Rbd1 {[%emt 0:00:05]} Kf7 {[%emt 0:00:38]} 30. R1d5 {[%emt 0:00:20]} h6 {[%emt 0:00:49]} 31. Rxe5 {[%emt 0:00:05]} Bxe5 {[%emt 0:00:01]} 32. Rd5 {[%emt 0:00:06][%csl LRb5,LRe5] Black got outplayed after the opening.   Weighted Error Value: White=0.06 (flawless) /Black=0.48.  Loses game:     	---       	Black=1      OK:         	White=13    	Black=7      Strong:       	White=1     	---} 1-0

[Event "10th Iberoamericano-ch 2024"]
[Site "Linares"]
[Date "2024.09.25"]
[Round "2.22"]
[White "Vega Gutierrez, Sabrina"]
[Black "Garzon Zapatanga, Christopher Leonel"]
[Result "1/2-1/2"]
[ECO "B92"]
[WhiteElo "2374"]
[BlackElo "2216"]
[Annotator "RC"]
[PlyCount "122"]
[EventDate "2024.09.25"]
[EventType "swiss"]
[EventCountry "ESP"]
[SourceTitle "playchess.com"]
[Source "ChessBase"]
[SourceQuality "1"]
[TimeControl "5400+30"]

1. e4 {[%emt 0:00:04]} c5 {[%emt 0:00:18]} 2. Nf3 {[%emt 0:00:07]} d6 {[%emt 0:00:05]} 3. d4 {[%emt 0:00:11]} cxd4 {[%emt 0:00:06]} 4. Nxd4 {[%emt 0:00:13]} Nf6 {[%emt 0:00:06]} 5. Nc3 {[%emt 0:00:10]} a6 {[%emt 0:00:05]} 6. Be2 {[%emt 0:00:27]} e5 {[%emt 0:00:07]} 7. Nb3 {[%emt 0:00:08]} Be7 {[%emt 0:00:29]} 8. Be3 {[%emt 0:00:20]} Be6 {[%emt 0:00:05]} 9. Nd5 {[%emt 0:00:31]} Nbd7 {[%emt 0:00:04]} 10. Qd3 {[%emt 0:00:37]} Bxd5 {[%emt 0:01:05]} 11. exd5 {[%emt 0:00:18]} Rc8 {[%emt 0:00:26]} 12. c4 {[%emt 0:00:51]} O-O {[%emt 0:00:40]} 13. O-O {[%emt 0:00:22]} Ne8 {[%emt 0:01:05]} 14. a4 {[%emt 0:00:27]} a5 {[%emt 0:04:23]} 15. Bg4 {[%emt 0:00:23]} Nef6 {[%emt 0:01:39]} 16. Bh3 {[%emt 0:00:21]} b6 {[%emt 0:05:16]} 17. f4 {[%emt 0:10:08]} Qc7 {[%emt 0:06:01]} 18. Rac1 {[%emt 0:06:54]} Rcd8 {[%emt 0:08:23]} 19. fxe5 {[%emt 0:16:08]} dxe5 {[%emt 0:05:38]} 20. Bg5 {[%emt 0:01:37]} Nc5 {[%emt 0:09:56]} 21. Nxc5 {[%emt 0:01:50]} Qxc5+ {[%emt 0:00:08]} 22. Kh1 {[%emt 0:01:21]} Ne8 {[%emt 0:09:37]} 23. Bxe7 {[%emt 0:02:22]} Qxe7 {[%emt 0:00:04]} 24. Qe3 {[%emt 0:00:28]} Qc5 {[%emt 0:02:25]} 25. Qxe5 {[%emt 0:05:58]} Nd6 {[%emt 0:00:25]} 26. b3 {[%emt 0:18:20]} Rde8 {[%emt 0:01:58]} 27. Qb2 {[%emt 0:00:48]} Re3 {[%emt 0:03:51]} 28. Rce1 {[%emt 0:00:22]} Rfe8 {[%emt 0:07:00]} 29. Rxe3 {[%emt 0:02:53]} Qxe3 {[%emt 0:01:41]} 30. Qc1 {[%emt 0:12:07]} Qxb3 {[%emt 0:04:18]} 31. c5 {[%emt 0:00:08]} bxc5 {[%emt 0:00:47]} 32. Qxc5 {[%emt 0:00:17]} Qd3 {[%emt 0:04:18]} 33. g3 {[%emt 0:00:23]} Ne4 {[%emt 0:07:00]} 34. Qb5 {[%emt 0:02:15]} Qxb5 {[%emt 0:00:14]} 35. axb5 {[%emt 0:00:03]} Rb8 {[%emt 0:00:14]} 36. Bd7 {[%emt 0:01:38]} Nd6 {[%emt 0:02:04]} 37. Ra1 {[%emt 0:00:41]} Nc4 {[%emt 0:00:22]} 38. Bc6 {[%emt 0:00:23]} Kf8 {[%emt 0:02:06]} 39. Ra4 {[%emt 0:00:19]} Nb6 {[%emt 0:00:11]} 40. Rxa5 {[%emt 0:00:08]} Rd8 {[%emt 0:00:19]} 41. Ra1 {[%emt 0:05:24]} Ke7 {[%emt 0:01:55]} 42. Re1+ {[%emt 0:05:33]} Kd6 {[%emt 0:00:53]} 43. Rf1 {[%emt 0:00:39]} Ke7 {[%emt 0:00:28]} 44. Rd1 {[%emt 0:00:45]} Kd6 {[%emt 0:03:41]} 45. Kg2 {[%emt 0:00:48]} Kc5 {[%emt 0:00:33]} 46. Rc1+ {[%emt 0:01:07]} Kb4 {[%emt 0:00:27]} 47. Kf3 {[%emt 0:01:15]} Nxd5 {[%emt 0:01:28]} 48. Rd1 {[%emt 0:00:22]} Kc5 {[%emt 0:00:07]} 49. Rxd5+ {[%emt 0:05:14]} Rxd5 {[%emt 0:00:07]} 50. Bxd5 {[%emt 0:00:03]} Kxd5 {[%emt 0:00:05]} 51. Kf4 {[%emt 0:00:12]} Kc5 {[%emt 0:00:29]} 52. Ke5 {[%emt 0:00:03]} Kxb5 {[%emt 0:00:08]} 53. Kd6 {[%emt 0:00:19]} Kc4 {[%emt 0:01:56]} 54. Ke7 {[%emt 0:00:03]} f5 {[%emt 0:00:07]} 55. h4 {[%emt 0:02:15]} Kd5 {[%emt 0:01:05]} 56. Kf7 {[%emt 0:00:35]} g6 {[%emt 0:00:06]} 57. Kg7 {[%emt 0:00:30]} Ke6 {[%emt 0:00:08]} 58. Kxh7 {[%emt 0:00:50]} Kf7 {[%emt 0:00:08]} 59. Kh6 {[%emt 0:00:30]} Kf6 {[%emt 0:00:06]} 60. Kh7 {[%emt 0:00:28]} g5 {[%emt 0:00:26]} 61. hxg5+ {[%emt 0:00:16]} Kxg5 {[%emt 0:00:07]} 1/2-1/2

[Event "10th Iberoamericano-ch 2024"]
[Site "Linares"]
[Date "2024.09.25"]
[Round "2.23"]
[White "Lorente Serrano, Rosa Adela"]
[Black "Ladron De Guevara Pinto, Paolo"]
[Result "0-1"]
[ECO "A07"]
[WhiteElo "2087"]
[BlackElo "2371"]
[Annotator "RC"]
[PlyCount "76"]
[EventDate "2024.09.25"]
[EventType "swiss"]
[EventCountry "ESP"]
[SourceTitle "playchess.com"]
[Source "ChessBase"]
[SourceQuality "1"]
[TimeControl "5400+30"]

1. Nf3 {[%emt 0:01:02]} d5 {[%emt 0:00:18]} 2. g3 {[%emt 0:00:35]} Bg4 {[%emt 0:01:33]} 3. Bg2 {[%emt 0:00:44]} c6 {[%emt 0:00:43]} 4. h3 {[%emt 0:08:22]} Bf5 {[%emt 0:01:13]} 5. d3 {[%emt 0:00:44]} h6 {[%emt 0:01:19]} 6. O-O {[%emt 0:01:18]} Nf6 {[%emt 0:01:02]} 7. Nbd2 {[%emt 0:02:10]} e6 {[%emt 0:00:08]} 8. Qe1 {[%emt 0:05:15]} Bh7 {[%emt 0:00:37]} 9. e4 {[%emt 0:00:16]} Be7 {[%emt 0:00:54]} 10. Qe2 {[%emt 0:00:56]} a5 {[%emt 0:01:22]} 11. Ne5 {[%emt 0:14:31]} Nbd7 {[%emt 0:02:11]} 12. exd5 {[%emt 0:04:13]} cxd5 {[%emt 0:00:21]} 13. Ndf3 {[%emt 0:03:44]} O-O {[%emt 0:02:06]} 14. d4 {[%emt 0:04:23]} Nb6 {[%emt 0:11:38]} 15. c3 {[%emt 0:00:52]} Nc8 {[%emt 0:00:30]} 16. h4 {[%emt 0:09:48]} Ne4 {[%emt 0:01:54]} 17. Bf4 {[%emt 0:03:18]} Ncd6 {[%emt 0:01:39]} 18. Bh3 {[%emt 0:05:58]} Kh8 {[%emt 0:06:51]} 19. Nd2 {[%emt 0:05:07]} Rc8 {[%emt 0:03:28]} 20. Nxe4 {[%emt 0:00:59]} Nxe4 {[%emt 0:00:22]} 21. f3 {[%emt 0:04:15]} Nd6 {[%emt 0:01:12]} 22. Rae1 {[%emt 0:03:58]} Ra8 {[%emt 0:20:03]} 23. Bc1 {[%emt 0:01:03]} Qe8 {[%emt 0:02:14]} 24. Rf2 {[%emt 0:07:10]} b5 {[%emt 0:03:07]} 25. h5 {[%emt 0:06:39]} b4 {[%emt 0:00:07]} 26. c4 {[%emt 0:04:31]} Nxc4 {[%emt 0:00:36]} 27. Nxf7+ {[%emt 0:01:25]} Rxf7 {[%emt 0:01:10]} 28. Bxe6 {[%emt 0:00:02]} Bf6 {[%emt 0:01:09]} 29. Bxd5 {[%emt 0:00:41]} Re7 {[%emt 0:00:27]} 30. Bxa8 {[%emt 0:00:49]} Qxa8 {[%emt 0:00:53]} 31. Qxe7 {[%emt 0:00:32]} Bxe7 {[%emt 0:00:03]} 32. Rxe7 {[%emt 0:00:01]} Bg8 {[%emt 0:04:54]} 33. Bf4 {[%emt 0:00:56]} Qd8 {[%emt 0:00:56]} 34. Rfe2 {[%emt 0:00:20]} Qxd4+ {[%emt 0:00:19]} 35. Kg2 {[%emt 0:00:05]} Bd5 {[%emt 0:04:47]} 36. b3 {[%emt 0:01:02]} Qd3 {[%emt 0:00:05]} 37. Re8+ {[%emt 0:00:37]} Kh7 {[%emt 0:00:15]} 38. R2e7 {[%emt 0:00:34]} Qxf3+ {[%emt 0:00:10]} 0-1

[Event "10th Iberoamericano-ch 2024"]
[Site "Linares"]
[Date "2024.09.25"]
[Round "2.24"]
[White "Mayorga Araya, Sofia"]
[Black "Panelo, Marcelo"]
[Result "1/2-1/2"]
[ECO "B51"]
[WhiteElo "2059"]
[BlackElo "2364"]
[Annotator "RC"]
[PlyCount "126"]
[EventDate "2024.09.25"]
[EventType "swiss"]
[EventCountry "ESP"]
[SourceTitle "playchess.com"]
[Source "ChessBase"]
[SourceQuality "1"]
[TimeControl "5400+30"]

1. e4 {[%emt 0:00:03]} c5 {[%emt 0:03:49]} 2. Nf3 {[%emt 0:00:10]} d6 {[%emt 0:00:15]} 3. Bb5+ {[%emt 0:00:07]} Nd7 {[%emt 0:00:50]} 4. O-O {[%emt 0:00:12]} a6 {[%emt 0:01:25]} 5. Bd3 {[%emt 0:00:22]} Ngf6 {[%emt 0:00:31]} 6. c3 {[%emt 0:00:08]} b5 {[%emt 0:04:21]} 7. Bc2 {[%emt 0:00:59]} e5 {[%emt 0:00:18]} 8. d4 {[%emt 0:00:33]} Be7 {[%emt 0:00:14]} 9. a4 {[%emt 0:02:22]} Bb7 {[%emt 0:05:36]} 10. Qe2 {[%emt 0:02:12]} O-O {[%emt 0:01:29]} 11. Nbd2 {[%emt 0:04:27]} Qc7 {[%emt 0:05:33]} 12. Bd3 {[%emt 0:06:35]} c4 {[%emt 0:04:38]} 13. Bc2 {[%emt 0:00:56]} Rfe8 {[%emt 0:01:05]} 14. d5 {[%emt 0:05:44]} Nc5 {[%emt 0:01:45]} 15. Nh4 {[%emt 0:01:41]} g6 {[%emt 0:06:59]} 16. Nhf3 {[%emt 0:02:40]} Nh5 {[%emt 0:01:43]} 17. g3 {[%emt 0:01:26]} Rab8 {[%emt 0:00:48]} 18. Qe3 {[%emt 0:02:43]} Qd7 {[%emt 0:05:05]} 19. axb5 {[%emt 0:03:13]} axb5 {[%emt 0:00:06]} 20. b4 {[%emt 0:00:33]} cxb3 {[%emt 0:05:54]} 21. Nxb3 {[%emt 0:00:10]} Nxb3 {[%emt 0:04:30]} 22. Bxb3 {[%emt 0:02:25]} Ra8 {[%emt 0:00:05]} 23. Ba3 {[%emt 0:03:43]} Ra6 {[%emt 0:06:07]} 24. Bb4 {[%emt 0:00:17]} Rea8 {[%emt 0:00:06]} 25. Rxa6 {[%emt 0:00:06]} Rxa6 {[%emt 0:00:06]} 26. Bd1 {[%emt 0:02:00]} Bc8 {[%emt 0:04:18]} 27. Be2 {[%emt 0:01:30]} Ra2 {[%emt 0:02:43]} 28. Nd2 {[%emt 0:03:37]} Nf6 {[%emt 0:01:40]} 29. Nb3 {[%emt 0:00:45]} Ng4 {[%emt 0:08:09]} 30. Qd3 {[%emt 0:02:12]} Bd8 {[%emt 0:04:28]} 31. Nc1 {[%emt 0:00:25]} Ra1 {[%emt 0:00:46]} 32. Qxb5 {[%emt 0:00:25]} Qxb5 {[%emt 0:04:32]} 33. Bxb5 {[%emt 0:00:02]} Bc7 {[%emt 0:00:25]} 34. Nb3 {[%emt 0:02:01]} Rxf1+ {[%emt 0:01:12]} 35. Bxf1 {[%emt 0:00:56]} Bb6 {[%emt 0:00:09]} 36. Bxd6 {[%emt 0:00:23]} Bxf2+ {[%emt 0:00:16]} 37. Kg2 {[%emt 0:00:48]} Be1 {[%emt 0:00:01]} 38. Bb4 {[%emt 0:04:14]} Nf2 {[%emt 0:00:45]} 39. Nc5 {[%emt 0:01:37]} Nd1 {[%emt 0:01:55]} 40. d6 {[%emt 0:00:38]} Bxc3 {[%emt 0:00:36]} 41. Bxc3 {[%emt 0:01:48]} Nxc3 {[%emt 0:00:02]} 42. d7 {[%emt 0:00:28]} Bxd7 {[%emt 0:00:03]} 43. Nxd7 {[%emt 0:00:08]} Nxe4 {[%emt 0:00:02]} 44. Nxe5 {[%emt 0:00:21]} Kg7 {[%emt 0:00:02]} 45. Bc4 {[%emt 0:02:40]} Nd6 {[%emt 0:00:07]} 46. Bd5 {[%emt 0:00:23]} f5 {[%emt 0:00:27]} 47. Kf3 {[%emt 0:01:24]} Kf6 {[%emt 0:00:15]} 48. Nd7+ {[%emt 0:00:48]} Ke7 {[%emt 0:00:19]} 49. Nc5 {[%emt 0:01:56]} Kf6 {[%emt 0:00:15]} 50. Kf4 {[%emt 0:01:00]} g5+ {[%emt 0:00:27]} 51. Kf3 {[%emt 0:00:17]} h6 {[%emt 0:01:59]} 52. g4 {[%emt 0:03:34]} Ke5 {[%emt 0:07:37]} 53. Be6 {[%emt 0:03:31]} fxg4+ {[%emt 0:00:23]} 54. Kxg4 {[%emt 0:00:40]} Ne8 {[%emt 0:01:30]} 55. Bc8 {[%emt 0:02:03]} Nf6+ {[%emt 0:00:09]} 56. Kf3 {[%emt 0:00:56]} Kd4 {[%emt 0:01:13]} 57. Nd7 {[%emt 0:00:55]} Nxd7 {[%emt 0:02:36]} 58. Bxd7 {[%emt 0:00:08]} h5 {[%emt 0:00:56]} 59. Be8 {[%emt 0:02:22]} Ke5 {[%emt 0:00:06]} 60. Bb5 {[%emt 0:03:23]} g4+ {[%emt 0:01:01]} 61. Kg3 {[%emt 0:00:25]} h4+ {[%emt 0:00:19]} 62. Kxh4 {[%emt 0:00:21]} Kf6 {[%emt 0:00:04]} 63. Kh5 {[%emt 0:00:21]} Kg7 {[%emt 0:00:04]} 1/2-1/2

[Event "10th Iberoamericano-ch 2024"]
[Site "Linares"]
[Date "2024.09.25"]
[Round "2.25"]
[White "Garcia, Jhoel"]
[Black "Santos Flores, Alberto"]
[Result "0-1"]
[ECO "B70"]
[WhiteElo "2360"]
[BlackElo "2168"]
[Annotator "RC"]
[PlyCount "90"]
[EventDate "2024.09.25"]
[EventType "swiss"]
[EventCountry "ESP"]
[SourceTitle "playchess.com"]
[Source "ChessBase"]
[SourceQuality "1"]
[TimeControl "5400+30"]

1. e4 {[%emt 0:00:01]} c5 {[%emt 0:02:32]} 2. Nf3 {[%emt 0:02:41]} d6 {[%emt 0:00:31]} 3. d4 {[%emt 0:08:56]} cxd4 {[%emt 0:00:05]} 4. Nxd4 {[%emt 0:00:04]} Nf6 {[%emt 0:00:05]} 5. Nc3 {[%emt 0:00:03]} g6 {[%emt 0:01:16]} 6. Be2 {[%emt 0:04:25]} Bg7 {[%emt 0:00:18]} 7. O-O {[%emt 0:00:07]} O-O {[%emt 0:00:26]} 8. Re1 {[%emt 0:00:06]} Nc6 {[%emt 0:00:17]} 9. Nb3 {[%emt 0:00:07]} Be6 {[%emt 0:05:15]} 10. Bf1 {[%emt 0:05:22]} d5 {[%emt 0:00:59]} 11. exd5 {[%emt 0:21:01]} Nxd5 {[%emt 0:00:42]} 12. Ne4 {[%emt 0:00:38]} Nf6 {[%emt 0:10:14]} 13. Nxf6+ {[%emt 0:03:32]} Bxf6 {[%emt 0:00:10]} 14. Bh6 {[%emt 0:00:54]} Qxd1 {[%emt 0:07:59]} 15. Raxd1 {[%emt 0:00:53]} Rfd8 {[%emt 0:00:12]} 16. c3 {[%emt 0:04:25]} b6 {[%emt 0:09:18]} 17. Bf4 {[%emt 0:06:38]} Bc8 {[%emt 0:20:31]} 18. Bc7 {[%emt 0:23:33]} Rxd1 {[%emt 0:01:37]} 19. Rxd1 {[%emt 0:00:05]} Bb7 {[%emt 0:01:16]} 20. Rd7 {[%emt 0:00:53]} Bc8 {[%emt 0:00:28]} 21. Rd1 {[%emt 0:00:52]} Bb7 {[%emt 0:00:04]} 22. Bb5 {[%emt 0:02:23]} Kf8 {[%emt 0:01:08]} 23. Bf4 {[%emt 0:03:35]} Rd8 {[%emt 0:07:09]} 24. Rxd8+ {[%emt 0:02:03]} Nxd8 {[%emt 0:00:03]} 25. Bb8 {[%emt 0:00:31]} a6 {[%emt 0:00:52]} 26. Be2 {[%emt 0:00:32]} Ne6 {[%emt 0:00:53]} 27. Ba7 {[%emt 0:00:18]} b5 {[%emt 0:00:26]} 28. Na5 {[%emt 0:01:31]} Bd5 {[%emt 0:00:54]} 29. c4 {[%emt 0:02:35]} bxc4 {[%emt 0:01:12]} 30. Nxc4 {[%emt 0:00:14]} Bd4 {[%emt 0:11:37]} 31. Bb8 {[%emt 0:00:54]} Nc5 {[%emt 0:00:51]} 32. b3 {[%emt 0:00:40]} Ne4 {[%emt 0:01:31]} 33. Ne3 {[%emt 0:01:29]} Bxe3 {[%emt 0:01:57]} 34. fxe3 {[%emt 0:00:23]} Nc3 {[%emt 0:00:04]} 35. Bxa6 {[%emt 0:01:57]} Nxa2 {[%emt 0:02:46]} 36. Bc7 {[%emt 0:02:23]} Nb4 {[%emt 0:00:59]} 37. Bc4 {[%emt 0:01:42]} Bxc4 {[%emt 0:00:19]} 38. bxc4 {[%emt 0:00:04]} Ke8 {[%emt 0:00:28]} 39. Kf2 {[%emt 0:00:25]} Kd7 {[%emt 0:00:18]} 40. Ba5 {[%emt 0:01:02]} Nd3+ {[%emt 0:00:22]} 41. Ke2 {[%emt 0:00:15]} Ne5 {[%emt 0:00:04]} 42. c5 {[%emt 0:00:32]} Kc6 {[%emt 0:00:29]} 43. Bd8 {[%emt 0:00:22]} e6 {[%emt 0:00:25]} 44. Be7 {[%emt 0:00:28]} f5 {[%emt 0:01:36]} 45. h3 {[%emt 0:00:44]} Nd7 {[%emt 0:01:50]} 0-1

[Event "10th Iberoamericano-ch 2024"]
[Site "Linares"]
[Date "2024.09.25"]
[Round "2.26"]
[White "Goncalves, Samuel Jesus P"]
[Black "Henriquez Villagra, Cristobal"]
[Result "1-0"]
[ECO "B12"]
[WhiteElo "2169"]
[BlackElo "2604"]
[Annotator "RC"]
[PlyCount "125"]
[EventDate "2024.09.25"]
[EventType "swiss"]
[EventCountry "ESP"]
[SourceTitle "playchess.com"]
[Source "ChessBase"]
[SourceQuality "1"]
[TimeControl "5400+30"]

1. e4 {[%emt 0:00:10]} c6 {[%emt 0:00:21]} 2. d4 {[%emt 0:00:39]} d5 {[%emt 0:00:08]} 3. e5 {[%emt 0:00:05]} Bf5 {[%emt 0:00:12]} 4. Nf3 {[%emt 0:00:06]} e6 {[%emt 0:00:09]} 5. Be2 {[%emt 0:00:05]} Nd7 {[%emt 0:01:29]} 6. O-O {[%emt 0:00:10]} h6 {[%emt 0:00:04]} 7. a4 {[%emt 0:08:53]} a5 {[%emt 0:00:47]} 8. c3 {[%emt 0:00:37]} g5 {[%emt 0:03:42]} 9. Na3 {[%emt 0:02:49]} Ne7 {[%emt 0:06:02]} 10. Nc2 {[%emt 0:04:40]} Qc7 {[%emt 0:00:30]} 11. Ne3 {[%emt 0:02:12]} Bg6 {[%emt 0:00:29]} 12. h4 {[%emt 0:01:49]} f6 {[%emt 0:08:58]} 13. Ng4 {[%emt 0:02:57]} Bg7 {[%emt 0:01:51]} 14. exf6 {[%emt 0:01:37]} Nxf6 {[%emt 0:01:18]} 15. Nfe5 {[%emt 0:00:25]} Nxg4 {[%emt 0:09:52]} 16. Bxg4 {[%emt 0:00:18]} Bxe5 {[%emt 0:00:36]} 17. dxe5 {[%emt 0:00:09]} Nf5 {[%emt 0:00:05]} 18. Bxf5 {[%emt 0:38:24]} Bxf5 {[%emt 0:00:23]} 19. Qh5+ {[%emt 0:01:18]} Qf7 {[%emt 0:00:09]} 20. Qxf7+ {[%emt 0:00:04]} Kxf7 {[%emt 0:00:03]} 21. hxg5 {[%emt 0:00:09]} hxg5 {[%emt 0:00:02]} 22. Bxg5 {[%emt 0:13:21]} Rag8 {[%emt 0:00:26]} 23. Bf4 {[%emt 0:02:39]} Rh4 {[%emt 0:01:02]} 24. Bg3 {[%emt 0:00:15]} Rhg4 {[%emt 0:00:16]} 25. Rfd1 {[%emt 0:00:59]} c5 {[%emt 0:00:06]} 26. Kf1 {[%emt 0:00:54]} Ke7 {[%emt 0:16:57]} 27. Rd2 {[%emt 0:03:11]} Kd7 {[%emt 0:00:20]} 28. Ke2 {[%emt 0:02:08]} Kc6 {[%emt 0:01:29]} 29. b3 {[%emt 0:02:18]} c4 {[%emt 0:02:48]} 30. Rb2 {[%emt 0:01:19]} cxb3 {[%emt 0:00:29]} 31. Rxb3 {[%emt 0:00:25]} Bc2 {[%emt 0:02:27]} 32. Rba3 {[%emt 0:00:06]} Rc4 {[%emt 0:01:23]} 33. R1a2 {[%emt 0:00:56]} Bg6 {[%emt 0:02:37]} 34. Rb2 {[%emt 0:01:17]} Kc7 {[%emt 0:00:24]} 35. f3 {[%emt 0:01:32]} Be8 {[%emt 0:01:00]} 36. Bf2 {[%emt 0:01:27]} Rxg2 {[%emt 0:00:22]} 37. Kf1 {[%emt 0:00:06]} Rg5 {[%emt 0:01:23]} 38. Bb6+ {[%emt 0:00:56]} Kc8 {[%emt 0:00:17]} 39. Rg2 {[%emt 0:01:12]} Rxg2 {[%emt 0:03:21]} 40. Kxg2 {[%emt 0:00:02]} Bxa4 {[%emt 0:00:06]} 41. Bxa5 {[%emt 0:00:19]} b5 {[%emt 0:00:05]} 42. Ra2 {[%emt 0:01:53]} Kb7 {[%emt 0:02:44]} 43. Rd2 {[%emt 0:00:16]} Rf4 {[%emt 0:02:14]} 44. Bb4 {[%emt 0:00:11]} Rf5 {[%emt 0:02:20]} 45. Bd6 {[%emt 0:00:08]} Kb6 {[%emt 0:00:11]} 46. Kg3 {[%emt 0:00:33]} Rf7 {[%emt 0:00:07]} 47. Kf2 {[%emt 0:00:43]} Bb3 {[%emt 0:04:48]} 48. Ke3 {[%emt 0:00:16]} Ka5 {[%emt 0:00:29]} 49. Rd4 {[%emt 0:00:48]} Bc4 {[%emt 0:01:29]} 50. Rf4 {[%emt 0:02:32]} Rh7 {[%emt 0:00:04]} 51. Kd4 {[%emt 0:00:25]} Ka4 {[%emt 0:02:12]} 52. Bb4 {[%emt 0:00:34]} Kb3 {[%emt 0:04:22]} 53. Rf6 {[%emt 0:01:18]} Rh1 {[%emt 0:00:51]} 54. f4 {[%emt 0:01:32]} Rd1+ {[%emt 0:05:42]} 55. Kc5 {[%emt 0:00:02]} d4 {[%emt 0:00:20]} 56. cxd4 {[%emt 0:00:02]} Bd3 {[%emt 0:00:08]} 57. d5 {[%emt 0:00:56]} exd5 {[%emt 0:02:16]} 58. e6 {[%emt 0:00:19]} Rc1+ {[%emt 0:03:42]} 59. Kd4 {[%emt 0:00:02]} Bc4 {[%emt 0:00:03]} 60. Bd6 {[%emt 0:01:57]} Re1 {[%emt 0:02:53]} 61. e7 {[%emt 0:00:41]} Re4+ {[%emt 0:00:05]} 62. Kc5 {[%emt 0:00:09]} d4 {[%emt 0:00:09]} 63. Be5 {[%emt 0:00:39]} 1-0